[Event "Titled Tuesday Blitz July 4 Early 2023"]
[White "cafu1950"]
[Black "Nunez V, Gustavo Eduardo"]
[BlackFideId "4403690"]
[WhiteElo "2600"]
[BlackElo "2474"]
[Result "1-0"]
[Round "5"]
[TimeControl "180+2"]
[Date "2023.07.04"]
[WhiteClock "0:01:55"]
[BlackClock "0:00:40"]
[Board "103"]

1. d4 {[%clk 0:02:54]}  Nf6 {[%clk 0:02:58]} 2. Nf3 {[%clk 0:02:55]}  g6 {[%clk 0:02:56]} 3. e3 {[%clk 0:02:56]}  Bg7 {[%clk 0:02:55]} 4. Nbd2 {[%clk 0:02:57]}  O-O {[%clk 0:02:55]} 5. c4 {[%clk 0:02:58]}  d6 {[%clk 0:02:56]} 6. Be2 {[%clk 0:02:57]}  Nbd7 {[%clk 0:02:56]} 7. O-O {[%clk 0:02:57]}  e5 {[%clk 0:02:57]} 8. b3 {[%clk 0:02:56]}  Re8 {[%clk 0:02:49]} 9. Bb2 {[%clk 0:02:55]}  e4 {[%clk 0:02:40]} 10. Ne1 {[%clk 0:02:53]}  h6 {[%clk 0:02:40]} 11. Nc2 {[%clk 0:02:41]}  c6 {[%clk 0:02:40]} 12. a4 {[%clk 0:02:29]}  a5 {[%clk 0:02:36]} 13. b4 {[%clk 0:02:27]}  axb4 {[%clk 0:02:34]} 14. Nxb4 {[%clk 0:02:28]}  Nh7 {[%clk 0:02:30]} 15. Qc2 {[%clk 0:02:23]}  f5 {[%clk 0:02:30]} 16. Bc3 {[%clk 0:02:21]}  Nhf6 {[%clk 0:02:06]} 17. a5 {[%clk 0:02:17]}  c5 {[%clk 0:02:06]} 18. dxc5 {[%clk 0:02:11]}  dxc5 {[%clk 0:02:07]} 19. Nd5 {[%clk 0:02:10]}  Nxd5 {[%clk 0:02:06]} 20. cxd5 {[%clk 0:02:11]}  Ne5 {[%clk 0:02:01]} 21. Nc4 {[%clk 0:02:09]}  Kh7 {[%clk 0:01:39]} 22. Rfd1 {[%clk 0:02:02]}  Nxc4 {[%clk 0:01:25]} 23. Bxc4 {[%clk 0:02:03]}  Bxc3 {[%clk 0:01:18]} 24. Qxc3 {[%clk 0:02:04]}  Qd6 {[%clk 0:01:18]} 25. Rab1 {[%clk 0:02:01]}  Qe5 {[%clk 0:01:13]} 26. Qxe5 {[%clk 0:02:00]}  Rxe5 {[%clk 0:01:14]} 27. d6 {[%clk 0:02:01]}  Bd7 {[%clk 0:01:09]} 28. Rxb7 {[%clk 0:02:01]}  Rd8 {[%clk 0:01:09]} 29. Bb5 {[%clk 0:02:01]}  Kg8 {[%clk 0:01:08]} 30. Rxd7 {[%clk 0:02:01]}  Rxd7 {[%clk 0:01:07]} 31. Bxd7 {[%clk 0:02:01]}  c4 {[%clk 0:01:08]} 32. a6 {[%clk 0:02:02]}  c3 {[%clk 0:01:06]} 33. Ba4 {[%clk 0:01:57]}  c2 {[%clk 0:00:43]} 34. Bxc2 {[%clk 0:01:56]}  Rd5 {[%clk 0:00:40]} 35. Rxd5 {[%clk 0:01:55]} 1-0


[Site "https://www.chess.com"]

[Event "Titled Tuesday Blitz July 4 Early 2023"]
[White "Czerw, Dawid"]
[Black "UNSTOPPABLE_LEGEND"]
[WhiteFideId "1145746"]
[WhiteElo "2598"]
[BlackElo "2471"]
[Result "0-1"]
[Round "5"]
[TimeControl "180+2"]
[Date "2023.07.04"]
[WhiteClock "0:00:09"]
[BlackClock "0:01:22"]
[Board "104"]

1. e4 {[%clk 0:03:00]}  d6 {[%clk 0:02:57]} 2. Nc3 {[%clk 0:02:59]}  Nf6 {[%clk 0:02:58]} 3. d4 {[%clk 0:03:00]}  e5 {[%clk 0:02:58]} 4. Nf3 {[%clk 0:03:00]}  exd4 {[%clk 0:02:58]} 5. Nxd4 {[%clk 0:03:00]}  Be7 {[%clk 0:02:58]} 6. g3 {[%clk 0:03:00]}  O-O {[%clk 0:02:58]} 7. Bg2 {[%clk 0:03:00]}  Nbd7 {[%clk 0:02:58]} 8. O-O {[%clk 0:03:01]}  Re8 {[%clk 0:02:58]} 9. h3 {[%clk 0:03:00]}  c6 {[%clk 0:02:59]} 10. Bf4 {[%clk 0:03:00]}  Bf8 {[%clk 0:02:58]} 11. Qd2 {[%clk 0:02:56]}  Ne5 {[%clk 0:02:58]} 12. g4 {[%clk 0:02:47]}  Nc4 {[%clk 0:02:57]} 13. Qc1 {[%clk 0:02:47]}  Qb6 {[%clk 0:02:54]} 14. Nb3 {[%clk 0:02:35]}  a5 {[%clk 0:02:39]} 15. a4 {[%clk 0:02:34]}  h5 {[%clk 0:02:26]} 16. g5 {[%clk 0:02:31]}  Nd7 {[%clk 0:02:27]} 17. Rb1 {[%clk 0:02:24]}  Nde5 {[%clk 0:02:25]} 18. Qd1 {[%clk 0:02:19]}  h4 {[%clk 0:02:20]} 19. Kh1 {[%clk 0:02:13]}  g6 {[%clk 0:02:19]} 20. Bh2 {[%clk 0:02:11]}  Bg7 {[%clk 0:02:11]} 21. Bg1 {[%clk 0:02:10]}  Nxb2 {[%clk 0:02:03]} 22. Rxb2 {[%clk 0:01:59]}  Nc4 {[%clk 0:02:03]} 23. Rb1 {[%clk 0:01:44]}  Bxc3 {[%clk 0:02:02]} 24. Qd3 {[%clk 0:01:40]}  Qb4 {[%clk 0:01:57]} 25. f4 {[%clk 0:01:20]}  Be6 {[%clk 0:01:50]} 26. f5 {[%clk 0:01:16]}  Ne5 {[%clk 0:01:48]} 27. fxe6 {[%clk 0:01:05]}  Nxd3 {[%clk 0:01:42]} 28. exf7+ {[%clk 0:01:04]}  Kg7 {[%clk 0:01:42]} 29. fxe8=Q {[%clk 0:00:58]}  Rxe8 {[%clk 0:01:43]} 30. cxd3 {[%clk 0:00:51]}  Qxa4 {[%clk 0:01:43]} 31. Nd4 {[%clk 0:00:27]}  Bxd4 {[%clk 0:01:40]} 32. Rxb7+ {[%clk 0:00:27]}  Kg8 {[%clk 0:01:40]} 33. Rff7 {[%clk 0:00:21]}  Qa1 {[%clk 0:01:37]} 34. Rf1 {[%clk 0:00:20]}  Qc3 {[%clk 0:01:36]} 35. Rff7 {[%clk 0:00:19]}  Bxg1 {[%clk 0:01:24]} 36. Kxg1 {[%clk 0:00:19]}  a4 {[%clk 0:01:25]} 37. Bf1 {[%clk 0:00:16]}  a3 {[%clk 0:01:24]} 38. d4 {[%clk 0:00:16]}  Qxd4+ {[%clk 0:01:23]} 39. Kh2 {[%clk 0:00:16]}  a2 {[%clk 0:01:21]} 40. Bc4 {[%clk 0:00:12]}  Qxc4 {[%clk 0:01:22]} 41. Rg7+ {[%clk 0:00:09]}  Kf8 {[%clk 0:01:22]} 0-1


[Site "https://www.chess.com"]

[Event "Titled Tuesday Blitz July 4 Early 2023"]
[White "Sukandar, Irine Kharisma"]
[Black "Gunduz, Umut Erdem"]
[WhiteFideId "7101937"]
[BlackFideId "6381383"]
[WhiteElo "2457"]
[BlackElo "2589"]
[Result "0-1"]
[Round "5"]
[TimeControl "180+2"]
[Date "2023.07.04"]
[WhiteClock "0:00:00"]
[BlackClock "0:00:49"]
[Board "108"]

1. d4 {[%clk 0:02:54]}  Nf6 {[%clk 0:03:00]} 2. Bf4 {[%clk 0:02:53]}  d5 {[%clk 0:02:56]} 3. e3 {[%clk 0:02:50]}  c5 {[%clk 0:02:56]} 4. Nc3 {[%clk 0:02:47]}  cxd4 {[%clk 0:02:56]} 5. exd4 {[%clk 0:02:45]}  a6 {[%clk 0:02:55]} 6. Nf3 {[%clk 0:02:42]}  Nc6 {[%clk 0:02:53]} 7. a3 {[%clk 0:02:40]}  Bg4 {[%clk 0:02:51]} 8. Be2 {[%clk 0:02:39]}  e6 {[%clk 0:02:51]} 9. O-O {[%clk 0:02:30]}  Bd6 {[%clk 0:02:51]} 10. Ne5 {[%clk 0:02:26]}  Bxe2 {[%clk 0:02:50]} 11. Nxe2 {[%clk 0:02:26]}  Bxe5 {[%clk 0:02:45]} 12. Bxe5 {[%clk 0:02:23]}  Nxe5 {[%clk 0:02:44]} 13. dxe5 {[%clk 0:02:23]}  Nd7 {[%clk 0:02:45]} 14. Re1 {[%clk 0:02:14]}  Nxe5 {[%clk 0:02:41]} 15. Nf4 {[%clk 0:02:05]}  Nc4 {[%clk 0:02:35]} 16. b3 {[%clk 0:01:42]}  Nb6 {[%clk 0:02:32]} 17. Qg4 {[%clk 0:01:35]}  O-O {[%clk 0:02:20]} 18. Nh5 {[%clk 0:01:35]}  g6 {[%clk 0:02:20]} 19. Re3 {[%clk 0:01:08]}  Nd7 {[%clk 0:02:08]} 20. Qd4 {[%clk 0:00:48]}  e5 {[%clk 0:01:44]} 21. Qxd5 {[%clk 0:00:39]}  gxh5 {[%clk 0:01:42]} 22. Rd3 {[%clk 0:00:17]}  Nf6 {[%clk 0:01:16]} 23. Qxe5 {[%clk 0:00:17]}  Qb6 {[%clk 0:01:14]} 24. Rg3+ {[%clk 0:00:17]}  Ng4 {[%clk 0:01:03]} 25. Qxh5 {[%clk 0:00:16]}  Qxf2+ {[%clk 0:00:51]} 26. Kh1 {[%clk 0:00:16]}  f5 {[%clk 0:00:52]} 27. Rd1 {[%clk 0:00:00]}  Rae8 {[%clk 0:00:49]} 0-1


[Site "https://www.chess.com"]

[Event "Titled Tuesday Blitz July 4 Early 2023"]
[White "Nefedov, Sergey"]
[Black "Begunov, Konstantin"]
[WhiteFideId "24113417"]
[BlackFideId "4118510"]
[WhiteElo "2581"]
[BlackElo "2448"]
[Result "0-1"]
[Round "5"]
[TimeControl "180+2"]
[Date "2023.07.04"]
[WhiteClock "0:00:00"]
[BlackClock "0:00:15"]
[Board "112"]

1. e4 {[%clk 0:02:55]}  c5 {[%clk 0:02:59]} 2. d4 {[%clk 0:02:45]}  cxd4 {[%clk 0:02:59]} 3. Qxd4 {[%clk 0:02:46]}  Nc6 {[%clk 0:02:58]} 4. Qd3 {[%clk 0:02:46]}  Nf6 {[%clk 0:02:56]} 5. Nf3 {[%clk 0:02:39]}  d6 {[%clk 0:02:56]} 6. Nc3 {[%clk 0:02:32]}  Bg4 {[%clk 0:02:53]} 7. Be2 {[%clk 0:02:25]}  e6 {[%clk 0:02:53]} 8. Bf4 {[%clk 0:02:18]}  a6 {[%clk 0:02:35]} 9. O-O-O {[%clk 0:02:10]}  Qb6 {[%clk 0:02:11]} 10. Be3 {[%clk 0:01:46]}  Qc7 {[%clk 0:02:09]} 11. h3 {[%clk 0:01:44]}  Bxf3 {[%clk 0:02:01]} 12. Bxf3 {[%clk 0:01:40]}  Ne5 {[%clk 0:02:00]} 13. Qe2 {[%clk 0:01:40]}  Nxf3 {[%clk 0:02:00]} 14. Qxf3 {[%clk 0:01:41]}  Be7 {[%clk 0:01:57]} 15. Rd2 {[%clk 0:01:39]}  O-O {[%clk 0:01:51]} 16. Rhd1 {[%clk 0:01:38]}  Rfd8 {[%clk 0:01:49]} 17. g4 {[%clk 0:01:35]}  b5 {[%clk 0:01:44]} 18. Bf4 {[%clk 0:01:27]}  b4 {[%clk 0:01:35]} 19. Na4 {[%clk 0:01:05]}  Qc6 {[%clk 0:01:29]} 20. b3 {[%clk 0:00:48]}  Qxe4 {[%clk 0:01:21]} 21. Qg3 {[%clk 0:00:46]}  e5 {[%clk 0:00:59]} 22. Bg5 {[%clk 0:00:46]}  Qc6 {[%clk 0:00:54]} 23. Bxf6 {[%clk 0:00:35]}  Bxf6 {[%clk 0:00:52]} 24. g5 {[%clk 0:00:36]}  Be7 {[%clk 0:00:50]} 25. Rd5 {[%clk 0:00:32]}  Rdc8 {[%clk 0:00:43]} 26. R1d2 {[%clk 0:00:32]}  Rab8 {[%clk 0:00:37]} 27. Nb2 {[%clk 0:00:30]}  Rb5 {[%clk 0:00:34]} 28. R5d3 {[%clk 0:00:15]}  e4 {[%clk 0:00:30]} 29. Re3 {[%clk 0:00:07]}  Bxg5 {[%clk 0:00:26]} 30. Nc4 {[%clk 0:00:05]}  Bxe3 {[%clk 0:00:26]} 31. Nxe3 {[%clk 0:00:06]}  Rc5 {[%clk 0:00:24]} 32. Qg4 {[%clk 0:00:05]}  d5 {[%clk 0:00:19]} 33. Kd1 {[%clk 0:00:03]}  g6 {[%clk 0:00:18]} 34. Nf5 {[%clk 0:00:03]}  Qe6 {[%clk 0:00:17]} 35. Nh6+ {[%clk 0:00:02]}  Kg7 {[%clk 0:00:17]} 36. Qh4 {[%clk 0:00:00]}  e3 {[%clk 0:00:15]} 0-1


[Site "https://www.chess.com"]

[Event "Titled Tuesday Blitz July 4 Early 2023"]
[White "Goncalves, Davi Sulzbacher"]
[Black "Becerra, Juan David"]
[WhiteFideId "2154510"]
[BlackFideId "4404998"]
[WhiteElo "2441"]
[BlackElo "2580"]
[Result "1-0"]
[Round "5"]
[TimeControl "180+2"]
[Date "2023.07.04"]
[WhiteClock "0:00:17"]
[BlackClock "0:00:27"]
[Board "113"]

1. Nf3 {[%clk 0:02:54]}  d5 {[%clk 0:02:59]} 2. c4 {[%clk 0:02:53]}  e6 {[%clk 0:02:58]} 3. d4 {[%clk 0:02:53]}  c6 {[%clk 0:02:57]} 4. e3 {[%clk 0:02:51]}  Nf6 {[%clk 0:02:57]} 5. Qc2 {[%clk 0:02:51]}  Nbd7 {[%clk 0:02:57]} 6. Bd3 {[%clk 0:02:48]}  dxc4 {[%clk 0:02:56]} 7. Bxc4 {[%clk 0:02:46]}  Bd6 {[%clk 0:02:57]} 8. e4 {[%clk 0:02:37]}  e5 {[%clk 0:02:56]} 9. O-O {[%clk 0:02:28]}  O-O {[%clk 0:02:56]} 10. Rd1 {[%clk 0:02:13]}  Qe7 {[%clk 0:02:55]} 11. Bg5 {[%clk 0:02:04]}  h6 {[%clk 0:02:54]} 12. Bh4 {[%clk 0:02:03]}  exd4 {[%clk 0:02:54]} 13. Rxd4 {[%clk 0:01:46]}  Bc5 {[%clk 0:02:51]} 14. Rd2 {[%clk 0:01:42]}  Qxe4 {[%clk 0:02:43]} 15. Bd3 {[%clk 0:01:35]}  Qb4 {[%clk 0:02:34]} 16. a3 {[%clk 0:01:23]}  Qb6 {[%clk 0:02:34]} 17. Nc3 {[%clk 0:01:24]}  Qc7 {[%clk 0:02:29]} 18. Bg3 {[%clk 0:01:08]}  Qd8 {[%clk 0:02:27]} 19. Bf5 {[%clk 0:01:05]}  a5 {[%clk 0:02:09]} 20. Rad1 {[%clk 0:01:00]}  Qe8 {[%clk 0:01:29]} 21. Re2 {[%clk 0:00:59]}  Qd8 {[%clk 0:01:29]} 22. Ne5 {[%clk 0:00:57]}  Ba7 {[%clk 0:01:10]} 23. Red2 {[%clk 0:00:53]}  Re8 {[%clk 0:00:53]} 24. Nxd7 {[%clk 0:00:51]}  Bxd7 {[%clk 0:00:53]} 25. Bxd7 {[%clk 0:00:44]}  Nxd7 {[%clk 0:00:53]} 26. h3 {[%clk 0:00:39]}  Re7 {[%clk 0:00:49]} 27. Bh4 {[%clk 0:00:38]}  f6 {[%clk 0:00:42]} 28. Qf5 {[%clk 0:00:35]}  Qb6 {[%clk 0:00:27]} 29. Rxd7 {[%clk 0:00:33]}  Rxd7 {[%clk 0:00:28]} 30. Rxd7 {[%clk 0:00:32]}  Qxb2 {[%clk 0:00:28]} 31. Qg6 {[%clk 0:00:19]}  Qc1+ {[%clk 0:00:28]} 32. Kh2 {[%clk 0:00:19]}  Qf4+ {[%clk 0:00:28]} 33. Bg3 {[%clk 0:00:17]}  Qg5 {[%clk 0:00:27]} 34. Rxg7+ {[%clk 0:00:17]}  Kf8 {[%clk 0:00:27]} 35. Qf7# {[%clk 0:00:17]} 1-0


[Site "https://www.chess.com"]

[Event "Titled Tuesday Blitz July 4 Early 2023"]
[White "Frolyanov, Dmitry"]
[Black "Itkis, Boris"]
[WhiteFideId "4151976"]
[BlackFideId "1209167"]
[WhiteElo "2578"]
[BlackElo "2441"]
[Result "0-1"]
[Round "5"]
[TimeControl "180+2"]
[Date "2023.07.04"]
[WhiteClock "0:00:01"]
[BlackClock "0:00:11"]
[Board "114"]

1. d4 {[%clk 0:03:00]}  d5 {[%clk 0:02:59]} 2. c4 {[%clk 0:03:00]}  e6 {[%clk 0:02:59]} 3. Nf3 {[%clk 0:03:00]}  Nf6 {[%clk 0:03:00]} 4. Nc3 {[%clk 0:03:00]}  Be7 {[%clk 0:03:00]} 5. Bf4 {[%clk 0:03:00]}  O-O {[%clk 0:02:59]} 6. e3 {[%clk 0:03:00]}  Nbd7 {[%clk 0:03:00]} 7. Bd3 {[%clk 0:02:51]}  dxc4 {[%clk 0:02:55]} 8. Bxc4 {[%clk 0:02:52]}  a6 {[%clk 0:02:55]} 9. O-O {[%clk 0:02:51]}  b5 {[%clk 0:02:54]} 10. Bd3 {[%clk 0:02:50]}  Bb7 {[%clk 0:02:55]} 11. Qc2 {[%clk 0:02:50]}  c5 {[%clk 0:02:54]} 12. Ne4 {[%clk 0:02:41]}  Rc8 {[%clk 0:02:43]} 13. Nd6 {[%clk 0:02:32]}  Bxd6 {[%clk 0:02:34]} 14. Bxd6 {[%clk 0:02:33]}  cxd4 {[%clk 0:02:35]} 15. Qe2 {[%clk 0:02:26]}  Re8 {[%clk 0:01:47]} 16. exd4 {[%clk 0:02:25]}  h6 {[%clk 0:01:34]} 17. Rad1 {[%clk 0:02:19]}  Qb6 {[%clk 0:01:30]} 18. Be5 {[%clk 0:02:18]}  Bxf3 {[%clk 0:01:16]} 19. Qxf3 {[%clk 0:02:17]}  Nxe5 {[%clk 0:01:17]} 20. dxe5 {[%clk 0:02:17]}  Nd5 {[%clk 0:01:17]} 21. Qe4 {[%clk 0:02:16]}  g6 {[%clk 0:01:17]} 22. h4 {[%clk 0:01:48]}  h5 {[%clk 0:01:14]} 23. g4 {[%clk 0:01:48]}  hxg4 {[%clk 0:00:44]} 24. h5 {[%clk 0:01:49]}  gxh5 {[%clk 0:00:41]} 25. Qh7+ {[%clk 0:01:48]}  Kf8 {[%clk 0:00:41]} 26. Qh6+ {[%clk 0:01:48]}  Ke7 {[%clk 0:00:40]} 27. Qg5+ {[%clk 0:01:48]}  Kd7 {[%clk 0:00:38]} 28. Qxh5 {[%clk 0:01:48]}  g3 {[%clk 0:00:33]} 29. Qxf7+ {[%clk 0:01:24]}  Re7 {[%clk 0:00:33]} 30. Qg6 {[%clk 0:01:23]}  Rf8 {[%clk 0:00:29]} 31. Bf5 {[%clk 0:01:22]}  gxf2+ {[%clk 0:00:17]} 32. Rxf2 {[%clk 0:01:23]}  Kc8 {[%clk 0:00:13]} 33. Rxd5 {[%clk 0:00:36]}  Rxf5 {[%clk 0:00:13]} 34. Rd2 {[%clk 0:00:34]}  Ref7 {[%clk 0:00:11]} 35. Rc2+ {[%clk 0:00:21]}  Kb8 {[%clk 0:00:11]} 36. Qg8+ {[%clk 0:00:21]}  Rf8 {[%clk 0:00:10]} 37. Qg2 {[%clk 0:00:17]}  Qe3 {[%clk 0:00:11]} 38. Kh1 {[%clk 0:00:06]}  Rh8+ {[%clk 0:00:10]} 39. Kg1 {[%clk 0:00:01]}  Rg5 {[%clk 0:00:11]} 0-1


[Site "https://www.chess.com"]

[Event "Titled Tuesday Blitz July 4 Early 2023"]
[White "Arat, Ufuk Sezen"]
[Black "Ai, Evan"]
[WhiteFideId "6309089"]
[BlackFideId "2094770"]
[WhiteElo "2578"]
[BlackElo "2437"]
[Result "0-1"]
[Round "5"]
[TimeControl "180+2"]
[Date "2023.07.04"]
[WhiteClock "0:00:05"]
[BlackClock "0:01:02"]
[Board "116"]

1. e4 {[%clk 0:02:57]}  e5 {[%clk 0:02:59]} 2. Nf3 {[%clk 0:02:57]}  Nc6 {[%clk 0:02:59]} 3. Bb5 {[%clk 0:02:54]}  a6 {[%clk 0:02:59]} 4. Ba4 {[%clk 0:02:54]}  Nf6 {[%clk 0:02:53]} 5. O-O {[%clk 0:02:54]}  Be7 {[%clk 0:02:53]} 6. c3 {[%clk 0:02:53]}  O-O {[%clk 0:02:27]} 7. Re1 {[%clk 0:02:41]}  b5 {[%clk 0:02:27]} 8. Bc2 {[%clk 0:02:41]}  d5 {[%clk 0:02:00]} 9. exd5 {[%clk 0:02:37]}  Nxd5 {[%clk 0:02:01]} 10. d4 {[%clk 0:02:37]}  exd4 {[%clk 0:02:00]} 11. Nxd4 {[%clk 0:02:35]}  Nxd4 {[%clk 0:02:00]} 12. cxd4 {[%clk 0:02:35]}  Bb7 {[%clk 0:01:56]} 13. Nd2 {[%clk 0:02:33]}  Bf6 {[%clk 0:01:52]} 14. Ne4 {[%clk 0:02:31]}  Re8 {[%clk 0:01:46]} 15. Qh5 {[%clk 0:01:59]}  g6 {[%clk 0:01:43]} 16. Qf3 {[%clk 0:01:45]}  Bxd4 {[%clk 0:01:38]} 17. Bg5 {[%clk 0:01:42]}  f6 {[%clk 0:01:29]} 18. Rad1 {[%clk 0:01:35]}  c5 {[%clk 0:01:25]} 19. Nxf6+ {[%clk 0:00:59]}  Bxf6 {[%clk 0:01:24]} 20. Rxe8+ {[%clk 0:00:55]}  Qxe8 {[%clk 0:01:25]} 21. Bxf6 {[%clk 0:00:55]}  Qf7 {[%clk 0:01:24]} 22. Be5 {[%clk 0:00:50]}  Qxf3 {[%clk 0:01:24]} 23. gxf3 {[%clk 0:00:50]}  Nb4 {[%clk 0:01:23]} 24. Bb1 {[%clk 0:00:43]}  Bxf3 {[%clk 0:01:22]} 25. Re1 {[%clk 0:00:23]}  Re8 {[%clk 0:01:20]} 26. a3 {[%clk 0:00:23]}  Nc6 {[%clk 0:01:19]} 27. Ba2+ {[%clk 0:00:20]}  c4 {[%clk 0:01:14]} 28. Bc3 {[%clk 0:00:21]}  Rxe1+ {[%clk 0:01:13]} 29. Bxe1 {[%clk 0:00:21]}  Nd4 {[%clk 0:01:11]} 30. Kf1 {[%clk 0:00:19]}  Be2+ {[%clk 0:01:11]} 31. Kg2 {[%clk 0:00:19]}  Nf3 {[%clk 0:01:10]} 32. Bc3 {[%clk 0:00:19]}  Nh4+ {[%clk 0:01:07]} 33. Kg3 {[%clk 0:00:18]}  Nf5+ {[%clk 0:01:07]} 34. Kf4 {[%clk 0:00:19]}  Kf7 {[%clk 0:01:07]} 35. Ke5 {[%clk 0:00:19]}  Nh4 {[%clk 0:01:06]} 36. Kd5 {[%clk 0:00:17]}  Nf3 {[%clk 0:01:05]} 37. h3 {[%clk 0:00:17]}  Ng5 {[%clk 0:01:02]} 38. h4 {[%clk 0:00:15]}  Nf3 {[%clk 0:01:02]} 39. Kc6 {[%clk 0:00:15]}  Nxh4 {[%clk 0:01:02]} 40. Kb6 {[%clk 0:00:15]}  Nf5 {[%clk 0:01:02]} 41. Kxa6 {[%clk 0:00:15]}  Nd6 {[%clk 0:01:01]} 42. Kb6 {[%clk 0:00:15]}  h5 {[%clk 0:01:01]} 43. Be5 {[%clk 0:00:14]}  Ke6 {[%clk 0:01:01]} 44. Bxd6 {[%clk 0:00:07]}  Kxd6 {[%clk 0:01:01]} 45. Kxb5 {[%clk 0:00:07]}  c3+ {[%clk 0:01:02]} 46. Kb4 {[%clk 0:00:05]}  c2 {[%clk 0:01:02]} 0-1


[Site "https://www.chess.com"]

[Event "Titled Tuesday Blitz July 4 Early 2023"]
[White "Ladan, Nicholas"]
[Black "Krstulovic, Alex"]
[WhiteFideId "30918855"]
[BlackFideId "760056"]
[WhiteElo "2437"]
[BlackElo "2577"]
[Result "1-0"]
[Round "5"]
[TimeControl "180+2"]
[Date "2023.07.04"]
[WhiteClock "0:00:15"]
[BlackClock "0:00:12"]
[Board "117"]

1. d4 {[%clk 0:02:59]}  e6 {[%clk 0:02:54]} 2. Nf3 {[%clk 0:02:59]}  c5 {[%clk 0:02:54]} 3. c3 {[%clk 0:02:59]}  b6 {[%clk 0:02:55]} 4. e3 {[%clk 0:02:58]}  Bb7 {[%clk 0:02:55]} 5. Bd3 {[%clk 0:02:59]}  f5 {[%clk 0:02:55]} 6. Nbd2 {[%clk 0:02:50]}  Nf6 {[%clk 0:02:56]} 7. Nc4 {[%clk 0:02:47]}  Be7 {[%clk 0:02:54]} 8. a4 {[%clk 0:02:47]}  O-O {[%clk 0:02:54]} 9. O-O {[%clk 0:02:45]}  Qe8 {[%clk 0:02:54]} 10. Bd2 {[%clk 0:02:34]}  d6 {[%clk 0:02:53]} 11. b4 {[%clk 0:02:33]}  cxd4 {[%clk 0:02:52]} 12. cxd4 {[%clk 0:02:32]}  Nbd7 {[%clk 0:02:52]} 13. b5 {[%clk 0:02:28]}  Ne4 {[%clk 0:02:52]} 14. Bb4 {[%clk 0:02:27]}  Qg6 {[%clk 0:02:50]} 15. a5 {[%clk 0:02:21]}  bxa5 {[%clk 0:02:45]} 16. Nxa5 {[%clk 0:02:21]}  Bd5 {[%clk 0:02:46]} 17. Bc4 {[%clk 0:02:18]}  Ndf6 {[%clk 0:02:46]} 18. Bxd5 {[%clk 0:02:16]}  Nxd5 {[%clk 0:02:46]} 19. Nc6 {[%clk 0:02:16]}  Bf6 {[%clk 0:02:42]} 20. Qb3 {[%clk 0:02:07]}  f4 {[%clk 0:02:40]} 21. Nxa7 {[%clk 0:01:55]}  Ng5 {[%clk 0:02:24]} 22. Nxg5 {[%clk 0:01:22]}  Qxg5 {[%clk 0:02:25]} 23. Bxd6 {[%clk 0:01:14]}  f3 {[%clk 0:02:20]} 24. Bg3 {[%clk 0:01:12]}  h5 {[%clk 0:02:05]} 25. b6 {[%clk 0:00:48]}  h4 {[%clk 0:01:53]} 26. b7 {[%clk 0:00:46]}  hxg3 {[%clk 0:01:54]} 27. hxg3 {[%clk 0:00:46]}  Rab8 {[%clk 0:01:48]} 28. Nc6 {[%clk 0:00:45]}  fxg2 {[%clk 0:01:47]} 29. Kxg2 {[%clk 0:00:45]}  Bxd4 {[%clk 0:01:03]} 30. Nxb8 {[%clk 0:00:40]}  Bxe3 {[%clk 0:00:58]} 31. fxe3 {[%clk 0:00:34]}  Rxb8 {[%clk 0:00:47]} 32. Ra8 {[%clk 0:00:27]}  Qd8 {[%clk 0:00:30]} 33. Rxb8 {[%clk 0:00:26]}  Qxb8 {[%clk 0:00:31]} 34. Rc1 {[%clk 0:00:23]}  Kh7 {[%clk 0:00:31]} 35. Qb1+ {[%clk 0:00:21]}  g6 {[%clk 0:00:27]} 36. Rc8 {[%clk 0:00:20]}  Nxe3+ {[%clk 0:00:25]} 37. Kf3 {[%clk 0:00:17]}  Qe5 {[%clk 0:00:17]} 38. b8=Q {[%clk 0:00:16]}  Qd5+ {[%clk 0:00:11]} 39. Kxe3 {[%clk 0:00:16]}  Qg5+ {[%clk 0:00:12]} 40. Qf4 {[%clk 0:00:15]} 1-0


[Site "https://www.chess.com"]

[Event "Titled Tuesday Blitz July 4 Early 2023"]
[White "ArtemDyachuk"]
[Black "Disconzi da Silva, Rodrigo"]
[BlackFideId "2100991"]
[WhiteElo "2574"]
[BlackElo "2437"]
[Result "0-1"]
[Round "5"]
[TimeControl "180+2"]
[Date "2023.07.04"]
[WhiteClock "0:00:03"]
[BlackClock "0:00:44"]
[Board "118"]

1. e4 {[%clk 0:03:00]}  c5 {[%clk 0:02:58]} 2. Nf3 {[%clk 0:02:59]}  e6 {[%clk 0:02:58]} 3. d4 {[%clk 0:02:59]}  cxd4 {[%clk 0:02:58]} 4. Nxd4 {[%clk 0:03:00]}  Nc6 {[%clk 0:02:58]} 5. Nc3 {[%clk 0:03:00]}  d6 {[%clk 0:02:58]} 6. Qd3 {[%clk 0:02:43]}  a6 {[%clk 0:02:56]} 7. Nb3 {[%clk 0:02:38]}  Nf6 {[%clk 0:02:53]} 8. Bg5 {[%clk 0:02:37]}  Be7 {[%clk 0:02:53]} 9. O-O-O {[%clk 0:02:35]}  O-O {[%clk 0:02:53]} 10. f4 {[%clk 0:02:22]}  b5 {[%clk 0:02:34]} 11. Qg3 {[%clk 0:02:17]}  Bb7 {[%clk 0:02:32]} 12. Bh6 {[%clk 0:02:11]}  Nh5 {[%clk 0:02:29]} 13. Qf3 {[%clk 0:02:08]}  Nf6 {[%clk 0:02:21]} 14. Qg3 {[%clk 0:02:08]}  Nh5 {[%clk 0:02:20]} 15. Qg4 {[%clk 0:02:09]}  g6 {[%clk 0:02:09]} 16. Bxf8 {[%clk 0:02:04]}  Bxf8 {[%clk 0:02:10]} 17. e5 {[%clk 0:02:00]}  Qc7 {[%clk 0:01:44]} 18. exd6 {[%clk 0:01:27]}  Bxd6 {[%clk 0:01:44]} 19. g3 {[%clk 0:01:26]}  Nb4 {[%clk 0:01:42]} 20. Rg1 {[%clk 0:01:22]}  Rc8 {[%clk 0:01:42]} 21. Kb1 {[%clk 0:01:13]}  Nxc2 {[%clk 0:01:22]} 22. Kxc2 {[%clk 0:00:48]}  b4 {[%clk 0:01:22]} 23. Bg2 {[%clk 0:00:47]}  bxc3 {[%clk 0:01:18]} 24. Qe2 {[%clk 0:00:36]}  cxb2+ {[%clk 0:01:12]} 25. Kb1 {[%clk 0:00:36]}  Bxg2 {[%clk 0:01:03]} 26. Qxg2 {[%clk 0:00:26]}  Ba3 {[%clk 0:01:01]} 27. Qd2 {[%clk 0:00:19]}  Ng7 {[%clk 0:00:55]} 28. g4 {[%clk 0:00:11]}  a5 {[%clk 0:00:48]} 29. Nxa5 {[%clk 0:00:04]}  Bb4 {[%clk 0:00:45]} 30. Qxb4 {[%clk 0:00:03]}  Qc2# {[%clk 0:00:44]} 0-1


[Site "https://www.chess.com"]